bitfinex/quotes_SOLUSD_20260221
["timestamp","ask_amount","ask_price","bid_price","bid_amount"]
[1771687379987,3.69383402,86.579,86.53,0.2]
[1771687379988,4.10054087,86.55,86.531,0.98986854]
[1771687380192,5.07439173,86.55,86.531,0.98986854]
[1771687380486,0.97385086,86.549,86.53,0.2]
[1771687381586,0.97385086,86.539,86.52,0.2]
[1771687388179,0.99482462,86.546,86.521,0.98462873]
[1771687388399,0.99482462,86.553,86.522,0.98462873]
[1771687390405,0.99482462,86.553,86.523,11.55762051]
[1771687390595,0.99482462,86.553,86.524,0.9764562]
[1771687391896,12.49100173,86.561,86.531,0.9764562]
[1771687392104,0.9383412,86.56,86.531,0.9764562]
[1771687393096,0.9383412,86.578,86.541,0.9764562]
[1771687393498,3.69383402,86.599,86.532,40.44746451]
[1771687393499,11.54938958,86.585,86.551,0.9764562]
[1771687394191,0.9383412,86.584,86.551,0.9764562]
[1771687395207,0.9383412,86.584,86.553,0.9764562]
[1771687395594,0.9383412,86.584,86.56,4.10737483]
[1771687395800,0.9383412,86.584,86.561,0.9764562]
[1771687396313,0.9383412,86.607,86.571,0.9764562]
[1771687397287,0.9383412,86.589,86.558,0.9764562]
[1771687398498,0.9383412,86.589,86.559,11.55281368]
[1771687399004,11.54894442,86.588,86.559,12.52926988]
[1771687399209,0.9383412,86.587,86.559,12.52926988]
[1771687400601,0.9383412,86.587,86.549,0.9764562]
[1771687400807,0.9383412,86.585,86.551,0.9764562]
[1771687403088,0.9383412,86.583,86.553,0.9764562]
[1771687405506,0.9383412,86.604,86.571,0.97559837]
[1771687405710,0.9383412,86.604,86.58,4.10737483]
[1771687405913,0.9383412,86.604,86.58,5.08251752]
[1771687407000,0.9383412,86.603,86.576,0.97469241]
[1771687409400,1.03094894,86.639,86.59,4.10737483]
[1771687409608,4.10737483,86.69,86.635,0.9764562]
[1771687409798,4.10737483,86.69,86.634,6.02853783]
[1771687409799,4.10737483,86.69,86.641,0.9764562]
[1771687410003,4.10737483,86.69,86.65,4.10737483]
[1771687410203,4.10737483,86.68,86.641,0.9764562]
[1771687410507,4.10737483,86.67,86.634,6.02853783]
[1771687410906,4.10737483,86.68,86.634,6.02853783]
[1771687411116,0.28432314,86.679,86.634,6.02853783]
[1771687411316,4.10737483,86.67,86.634,6.02853783]
[1771687411497,0.9383412,86.669,86.634,6.02853783]
[1771687411813,0.9383412,86.667,86.634,6.02853783]
[1771687412809,0.9383412,86.667,86.64,4.10737483]
[1771687414299,11.53855029,86.666,86.634,6.02853783]
[1771687414499,0.9383412,86.665,86.634,6.02853783]
[1771687415800,11.53881657,86.664,86.631,0.9764562]
[1771687416000,0.9383412,86.663,86.631,0.9764562]
[1771687417910,0.9500494,86.661,86.631,0.9764562]
[1771687421203,0.9500494,86.659,86.63,15.65071702]
[1771687424522,0.9500494,86.657,86.63,15.65071702]
[1771687424915,0.9500494,86.657,86.63,16.66293886]
[1771687425426,0.9500494,86.657,86.631,1.01222184]
[1771687427807,0.9500494,86.657,86.64,4.10737483]
[1771687428320,0.9500494,86.657,86.64,5.11959667]
[1771687428712,0.9500494,86.679,86.651,1.01222184]
[1771687429931,0.9500494,86.679,86.66,4.10737483]
[1771687430431,0.9500494,86.685,86.661,1.01222184]
[1771687432917,0.9500494,86.683,86.65,4.10737483]
[1771687433323,0.9500494,86.683,86.651,1.01222184]
[1771687434235,0.9500494,86.691,86.66,4.10737483]
[1771687434437,0.9500494,86.689,86.653,1.01222184]
[1771687435319,0.9500494,86.687,86.653,1.01222184]
[1771687438140,0.9500494,86.679,86.646,12.55343489]
[1771687438342,0.9500494,86.679,86.646,11.54121305]
[1771687438539,0.9500494,86.679,86.64,4.10737483]
[1771687438733,0.9500494,86.679,86.63,4.10737483]
[1771687439239,1.02158539,86.669,86.63,4.10737483]
[1771687440649,1.02158539,86.667,86.631,11.54321201]
[1771687440944,1.02158539,86.667,86.632,0.04933131]
[1771687441146,1.02158539,86.667,86.64,4.10737483]
[1771687443741,11.53828402,86.668,86.631,11.54321201]
[1771687443742,1.02158539,86.665,86.631,0.05378919]
[1771687444131,1.02158539,86.665,86.64,4.10737483]
[1771687445941,1.02158539,86.665,86.64,4.09554844]
[1771687447147,1.02158539,86.663,86.611,0.05807883]
[1771687447345,1.02158539,86.663,86.63,4.09554844]
[1771687450151,1.04694031,86.661,86.63,4.16045305]
[1771687450339,1.04694031,86.661,86.631,0.06490461]
[1771687452446,11.53934918,86.66,86.631,0.06490461]
[1771687452651,1.04694031,86.659,86.631,0.06490461]
[1771687456536,1.04694031,86.657,86.631,0.06490461]
[1771687463663,4.09554844,86.67,86.631,0.06490461]
[1771687463664,1.04694031,86.655,86.631,0.06490461]
[1771687464059,11.53988183,86.656,86.61,4.09554844]
[1771687464060,1.04694031,86.649,86.61,4.09554844]
[1771687464257,1.04694031,86.649,86.61,4.17604706]
[1771687464642,1.04694031,86.649,86.611,0.08148232]
[1771687466043,1.04694031,86.647,86.611,0.08148232]
[1771687467667,1.04694031,86.645,86.611,0.08148232]
[1771687468870,1.04694031,86.643,86.611,0.08148232]
[1771687472669,1.04694031,86.643,86.621,0.08898273]
[1771687476275,1.04694031,86.643,86.616,11.63675819]
[1771687476478,1.04694031,86.643,86.62,4.09554844]
[1771687476774,11.54174649,86.642,86.617,0.09161676]
[1771687476975,1.04694031,86.641,86.617,0.09161676]
[1771687478181,1.04694031,86.641,86.62,4.18971167]
[1771687478868,1.04694031,86.641,86.62,4.09554844]
[1771687479181,1.04694031,86.641,86.621,0.0949911]
[1771687483773,1.04694031,86.641,86.611,0.09898878]
[1771687485463,1.04694031,86.641,86.616,0.09976235]
[1771687491486,1.02158539,86.648,86.621,0.10423562]
[1771687496297,1.02158539,86.646,86.621,0.10423562]
[1771687503293,1.02158539,86.644,86.621,0.10423562]
[1771687507282,1.02158539,86.642,86.621,0.10423562]
[1771687507598,1.02158539,86.642,86.62,4.09554844]
[1771687508001,1.02158539,86.642,86.621,0.1158657]
[1771687517024,1.02533052,86.65,86.621,0.1158657]
[1771687517316,1.02533052,86.67,86.631,0.11865877]
[1771687517896,4.09713367,86.69,86.641,0.11852788]
[1771687517897,1.02533052,86.668,86.641,0.11852788]
[1771687518220,1.02533052,86.668,86.65,4.21566155]
[1771687521699,1.02533052,86.668,86.65,4.09713367]
[1771687521895,1.02533052,86.666,86.631,0.11796354]
[1771687523602,1.02533052,86.664,86.632,0.11769859]
[1771687524209,1.02533052,86.659,86.625,0.11769859]
[1771687524415,1.02533052,86.649,86.61,0.11769859]
[1771687524610,1.02533052,86.639,86.611,11.54587754]
[1771687524810,1.02533052,86.639,86.611,11.66345238]
[1771687525018,1.02533052,86.639,86.612,0.11757484]
[1771687525705,1.02533052,86.629,86.604,0.11745025]
[1771687551645,1.02533052,86.629,86.593,0.11458487]
[1771687553130,4.09713367,86.63,86.593,0.11458487]
[1771687553131,1.02900498,86.627,86.593,0.11458487]
[1771687557131,1.02900498,86.619,86.592,11.54841093]
[1771687557723,1.02900498,86.619,86.593,0.11409617]
[1771687561829,1.02900498,86.629,86.6,4.09713367]
[1771687562029,1.02900498,86.628,86.601,0.11377885]
[1771687572952,1.02900498,86.628,86.592,11.54841093]
[1771687572953,1.02556399,86.649,86.621,0.11282208]
[1771687573455,1.02556399,86.654,86.632,0.11282208]
[1771687574461,1.02556399,86.659,86.62,4.09950989]
[1771687574645,1.02556399,86.649,86.617,0.11209069]
[1771687577845,1.02556399,86.659,86.622,0.10927183]
[1771687579043,1.02556399,86.649,86.622,0.10927183]
[1771687581849,11.54094728,86.648,86.622,0.10927183]
[1771687582149,1.02556399,86.647,86.622,0.10927183]
[1771687582562,1.02556399,86.647,86.62,15.64418547]
[1771687583160,1.02556399,86.647,86.621,0.10591829]
[1771687583744,1.02556399,86.647,86.611,0.28432314]
[1771687584047,1.02556399,86.647,86.612,0.1052679]
[1771687588259,1.02556399,86.647,86.613,0.10275405]
[1771687589562,1.02556399,86.647,86.62,4.2010444]
[1771687590853,1.02556399,86.645,86.62,0.10153451]
[1771687592546,1.02556399,86.645,86.616,11.64493199]
[1771687592749,1.02556399,86.639,86.604,0.09975898]
[1771687593070,1.02556399,86.629,86.602,11.54707743]
[1771687593951,1.02556399,86.629,86.602,11.64626054]
[1771687596565,1.02556399,86.629,86.603,0.09805328]
[1771687596873,1.02556399,86.629,86.602,11.54707743]
[1771687597573,1.02556399,86.627,86.599,0.09750839]
[1771687599371,1.02158539,86.609,86.585,11.54922521]
[1771687599576,1.02158539,86.609,86.586,0.09534844]
[1771687600150,1.02158539,86.609,86.585,11.54922521]
[1771687600151,1.02158539,86.619,86.591,0.09534844]
[1771687601452,1.02158539,86.618,86.591,0.09534844]
[1771687604781,4.09950989,86.64,86.582,0.28432314]
[1771687604782,1.02158539,86.609,86.582,0.28432314]
[1771687604959,4.09950989,86.61,86.575,0.09278115]
[1771687604960,1.02158539,86.599,86.575,0.09278115]
[1771687607176,1.02158539,86.599,86.564,0.0917958]
[1771687607884,1.02158539,86.589,86.559,11.55279018]
[1771687609972,1.02158539,86.589,86.555,0.09132304]
[1771687610281,1.02158539,86.579,86.555,0.09132304]
[1771687611486,4.09950989,86.58,86.55,0.2]
[1771687611487,1.02158539,86.577,86.55,0.2]
[1771687611968,1.02158539,86.559,86.54,0.2]
[1771687613167,1.02158539,86.557,86.53,0.2]
[1771687613565,1.02158539,86.549,86.53,0.2]
[1771687613965,1.02158539,86.539,86.52,0.2]
[1771687614172,40.43531504,86.558,86.51,0.2]
[1771687614173,1.02127983,86.529,86.51,0.2]
[1771687614982,1.02127983,86.533,86.51,0.2]
[1771687615188,1.02127983,86.533,86.511,11.55922368]
[1771687616172,4.09950989,86.56,86.511,11.55922368]
[1771687616173,11.54761079,86.598,86.514,3.69383402]
[1771687616396,1.06574431,86.579,86.54,4.09950989]
[1771687617280,11.55027836,86.578,86.541,11.5552166]
[1771687617478,1.06574431,86.577,86.541,11.5552166]
[1771687619883,1.06574431,86.577,86.55,4.09950989]
[1771687622490,1.06574431,86.577,86.551,11.55388152]
[1771687623797,1.06574431,86.589,86.56,4.09950989]
[1771687623978,1.06574431,86.587,86.529,3.69383402]
[1771687624183,1.06574431,86.579,86.54,4.09950989]
[1771687624579,1.06574431,86.549,86.522,11.55775409]
[1771687624878,1.06574431,86.549,86.521,11.55788768]
[1771687625494,1.06574431,86.549,86.514,11.55870922]
[1771687626378,1.06574431,86.539,86.51,4.29950989]
[1771687626577,1.06574431,86.539,86.511,11.55922368]
[1771687628375,4.09950989,86.54,86.511,11.55922368]
[1771687628376,1.06574431,86.529,86.511,11.55922368]
[1771687629404,1.06574431,86.529,86.51,0.2]
[1771687631791,1.06574431,86.529,86.511,11.55922368]
[1771687632290,1.06574431,86.529,86.51,0.2]
[1771687637298,1.06574431,86.519,86.51,0.2]
[1771687637487,1.06574431,86.519,86.5,0.2]
[1771687638598,1.03357539,86.509,86.5,0.2]
[1771687640203,4.10867033,86.52,86.501,11.56055999]
[1771687640399,4.10867033,86.52,86.5,0.2]
[1771687642314,1.03357539,86.519,86.5,0.2]
[1771687647715,1.03357539,86.518,86.5,0.2]
[1771687649718,1.03357539,86.569,86.512,0.28432314]
[1771687649921,1.03357539,86.559,86.521,1.06716141]
[1771687650315,1.03357539,86.549,86.521,1.06716141]
[1771687652412,1.03357539,86.549,86.523,1.06716141]
[1771687655106,1.03357539,86.549,86.524,11.55748694]
[1771687656616,1.03357539,86.549,86.524,12.62464835]
[1771687659126,1.03357539,86.549,86.526,12.56402582]
[1771687659327,1.0025389,86.547,86.519,11.55813878]
[1771687659824,11.55428201,86.548,86.519,11.55813878]
[1771687659825,1.0025389,86.539,86.519,11.55813878]
[1771687661029,1.0025389,86.539,86.52,5.11547636]
[1771687661415,1.0025389,86.539,86.521,1.00680603]
[1771687661831,1.0025389,86.539,86.512,1.00680603]
[1771687663538,1.0025389,86.539,86.506,11.55981761]
[1771687663839,1.0025389,86.529,86.506,11.55981761]
[1771687664745,1.0025389,86.529,86.51,4.10867033]
[1771687666109,1.0025389,86.529,86.5,0.2]
[1771687666314,1.0025389,86.527,86.501,1.00680603]
[1771687666735,1.0025389,86.527,86.501,12.56736602]
[1771687667331,1.0025389,86.527,86.5,4.30867033]
[1771687667625,1.0025389,86.527,86.501,1.00680603]
[1771687668138,1.0025389,86.527,86.5,15.86931122]
[1771687669838,1.0025389,86.525,86.5,4.30867033]
[1771687670023,1.0025389,86.525,86.501,11.56055999]
[1771687670724,1.0025389,86.525,86.5,0.2]
[1771687670911,1.0025389,86.525,86.5,4.30867033]
[1771687671821,1.0025389,86.523,86.5,0.2]
[1771687672022,1.0025389,86.519,86.49,0.2]
[1771687673145,1.0025389,86.519,86.48,4.30867033]
[1771687673146,1.0025389,86.509,86.48,0.2]
[1771687674324,11.55962454,86.508,86.48,0.2]
[1771687674534,1.0025389,86.507,86.48,0.2]
[1771687676039,28.89723913,86.514,86.47,4.30867033]
[1771687676040,1.0025389,86.499,86.47,4.30867033]
[1771687676356,4.10867033,86.52,86.481,1.00680603]
[1771687676517,4.10867033,86.52,86.48,4.10867033]
[1771687676518,4.10867033,86.52,86.49,4.10867033]
[1771687676836,4.10867033,86.52,86.488,1.00680603]
[1771687677346,4.10867033,86.52,86.481,1.00680603]
[1771687677722,11.55748694,86.524,86.49,4.10867033]
[1771687677923,11.5568191,86.529,86.491,1.00680603]
[1771687678346,1.0025389,86.528,86.491,1.00680603]
[1771687678532,1.0025389,86.519,86.481,1.00680603]
[1771687680039,1.0025389,86.517,86.481,1.00680603]
[1771687680241,11.55828844,86.518,86.481,1.00680603]
[1771687680242,1.0025389,86.509,86.481,1.00680603]
[1771687680540,1.0025389,86.509,86.483,1.00680603]
[1771687683141,1.0025389,86.508,86.483,1.00680603]
[1771687686936,1.0025389,86.506,86.483,1.00680603]
[1771687687149,1.0025389,86.506,86.48,5.11547636]
[1771687687344,1.0025389,86.506,86.481,1.00680603]
[1771687693657,4.11059688,86.51,86.481,1.00680603]
[1771687693658,0.9846211,86.504,86.481,1.00680603]
[1771687694343,0.9846211,86.504,86.477,11.56367554]
[1771687694656,0.9846211,86.499,86.47,0.2]
[1771687695040,0.9846211,86.499,86.47,1.22110417]
[1771687695443,0.9846211,86.499,86.471,1.02110417]
[1771687695643,0.9846211,86.498,86.471,1.02110417]
[1771687698253,0.9846211,86.496,86.471,1.02110417]
[1771687698471,11.5610946,86.497,86.46,4.11059688]
[1771687698472,0.9846211,86.489,86.46,4.11059688]
[1771687699067,0.9846211,86.489,86.456,11.5665219]
[1771687699259,0.9846211,86.479,86.45,4.31059688]
[1771687699561,0.9846211,86.489,86.46,4.11059688]
[1771687700551,0.9846211,86.487,86.461,1.02110417]
[1771687702366,11.56229765,86.488,86.461,1.02110417]
[1771687702367,0.9846211,86.485,86.461,1.02110417]
[1771687703449,0.9846211,86.485,86.456,1.02110417]
[1771687703646,4.11059688,86.48,86.45,4.31059688]
[1771687703849,0.9846211,86.469,86.45,0.2]
[1771687704570,0.9846211,86.467,86.45,0.2]
[1771687708756,0.9846211,86.465,86.45,0.2]
[1771687709158,0.9846211,86.465,86.44,5.33170105]
[1771687709372,0.9846211,86.465,86.44,1.22110417]
[1771687709778,0.9846211,86.463,86.441,1.02110417]
[1771687716570,0.9846211,86.461,86.441,1.02110417]
[1771687716964,0.9846211,86.466,86.441,1.02110417]
[1771687717272,0.9846211,86.464,86.441,1.02110417]
[1771687717576,0.9846211,86.464,86.44,0.2]
[1771687718471,0.9846211,86.464,86.44,1.26533868]
[1771687720065,1.03001712,86.459,86.44,0.2]
[1771687722393,15.63546327,86.52,86.44,0.2]
[1771687722394,1.03001712,86.469,86.441,1.06533868]
[1771687723069,1.03001712,86.469,86.442,11.56845052]
[1771687723269,1.03001712,86.469,86.443,1.06533868]
[1771687725387,1.03001712,86.488,86.461,1.06533868]
[1771687726476,1.17217869,86.479,86.44,1e-08]
[1771687726680,1.03001712,86.469,86.44,1e-08]
[1771687727071,1.03001712,86.447,86.385,28.93987635]
[1771687727270,1.03001712,86.429,86.4,4.11059688]
[1771687728584,1.03001712,86.429,86.408,1.06533868]
[1771687729304,1.03001712,86.445,86.421,1.06533868]
[1771687729471,11.56778141,86.447,86.421,1.06533868]
[1771687729877,1.03001712,86.446,86.421,1.06533868]
[1771687732679,1.03001712,86.444,86.421,1.06533868]
[1771687732881,1.03001712,86.439,86.42,0.1]
[1771687734581,1.03001712,86.438,86.42,0.1]
[1771687734996,1.03001712,86.438,86.41,0.1]
[1771687735204,3.80929538,86.407,86.391,1.06533868]
[1771687735494,1.03001712,86.424,86.402,1.06533868]
[1771687736196,4.11059688,86.43,86.39,15.78592118]
[1771687736197,1.03001712,86.422,86.391,1.06533868]
[1771687738578,11.57126161,86.421,86.391,1.06533868]
[1771687738801,1.03001712,86.42,86.391,1.06533868]
[1771687739008,4.11059688,86.43,86.395,1.06533868]
[1771687740700,11.57019056,86.429,86.395,1.06533868]
[1771687740903,1.03001712,86.428,86.395,1.06533868]
[1771687741106,11.57019056,86.429,86.395,1.06533868]
[1771687741107,4.11059688,86.42,86.395,1.06533868]
[1771687741483,1.03001712,86.419,86.395,1.06533868]
[1771687741984,1.03001712,86.417,86.39,1.16533868]
[1771687742697,4.11059688,86.41,86.39,1.16533868]
[1771687743097,1.03001712,86.409,86.39,1.16533868]
[1771687745001,1.03001712,86.399,86.379,1.06533868]
[1771687749297,11.57434199,86.398,86.379,1.06533868]
[1771687749697,12.64192459,86.398,86.379,1.06533868]
[1771687750412,4.11059688,86.39,86.37,0.1]
[1771687752001,4.12263897,86.39,86.37,0.1]
[1771687752203,4.12263897,86.38,86.37,0.1]
[1771687756399,4.15711606,86.38,86.359,1.15974443]
[1771687756817,0.03999168,86.379,86.359,1.15974443]
[1771687757698,0.03999168,86.379,86.35,0.1]
[1771687757699,0.03999168,86.379,86.354,1.15974443]
[1771687760022,4.12263897,86.38,86.354,1.15974443]
[1771687762109,4.12263897,86.38,86.356,1.15974443]
[1771687765808,0.06666151,86.389,86.356,1.15974443]
[1771687767013,4.12263897,86.38,86.356,1.15974443]
[1771687768623,11.5768879,86.379,86.356,1.15974443]
[1771687769611,4.12263897,86.37,86.341,11.58198306]
[1771687770011,1.1146744,86.369,86.341,11.58198306]
[1771687770326,4.12263897,86.37,86.34,0.1]
[1771687770931,1.1146744,86.369,86.34,0.1]
[1771687771126,11.57774111,86.373,86.34,0.1]
[1771687771429,4.12263897,86.37,86.34,0.1]
[1771687771622,4.12263897,86.37,86.341,1.14395091]
[1771687773017,1.1146744,86.369,86.343,1.14395091]
[1771687773419,4.12263897,86.37,86.343,1.14395091]
[1771687774334,11.57822829,86.369,86.343,1.14395091]
[1771687775029,12.69290269,86.369,86.343,1.14395091]
[1771687776435,1.1146744,86.368,86.343,1.14395091]
[1771687776638,4.12263897,86.36,86.343,1.14395091]
[1771687782140,1.18446968,86.389,86.351,1.17071647]
[1771687782925,1.18446968,86.379,86.351,1.17071647]
[1771687783126,1.18446968,86.369,86.351,1.17071647]
[1771687785043,11.577886,86.372,86.351,1.17071647]
[1771687785828,12.76235568,86.372,86.351,1.17071647]
[1771687786622,5.30710865,86.37,86.351,1.17071647]
[1771687786827,4.12263897,86.37,86.351,1.17071647]
[1771687787045,11.57626304,86.384,86.351,1.17071647]
[1771687787344,4.12263897,86.38,86.353,1.17071647]
[1771687787846,5.30710865,86.38,86.353,1.17071647]
[1771687788047,4.12263897,86.38,86.353,1.17071647]
[1771687788248,1.18446968,86.379,86.353,1.17071647]
[1771687789335,1.18446968,86.379,86.355,1.17071647]
[1771687791148,4.12263897,86.38,86.355,1.17071647]
[1771687791742,5.30710865,86.38,86.355,1.17071647]
[1771687792346,4.12263897,86.38,86.355,1.17071647]
[1771687792535,1.18446968,86.379,86.355,1.17071647]
[1771687796453,4.12263897,86.37,86.355,1.17071647]
[1771687797935,5.30710865,86.37,86.355,1.17071647]
[1771687800253,1.18446968,86.369,86.355,1.17071647]
[1771687801042,11.57836235,86.368,86.344,1.17071647]
[1771687801260,4.12263897,86.36,86.344,1.17071647]
[1771687801559,1.18446968,86.367,86.344,1.17071647]
[1771687801757,4.12263897,86.36,86.344,1.17071647]
[1771687801958,1.18446968,86.349,86.33,0.1]
[1771687802158,1.18446968,86.339,86.29,4.12263897]
[1771687802455,1.18446968,86.339,86.301,11.58735124]
[1771687803042,1.18446968,86.345,86.301,11.58735124]
[1771687803254,4.12263897,86.33,86.301,11.58735124]
[1771687803465,4.12263897,86.33,86.3,0.1]
[1771687803466,1.18446968,86.319,86.3,0.1]
[1771687804064,1.18446968,86.319,86.3,1.27071647]
[1771687804643,1.18446968,86.329,86.3,1.27071647]
[1771687804844,1.18446968,86.328,86.3,1.27071647]
[1771687805455,1.18446968,86.333,86.302,1.17071647]
[1771687805642,11.58268628,86.336,86.302,1.17071647]
[1771687805841,1.18446968,86.335,86.302,1.17071647]
[1771687806042,1.18446968,86.319,86.302,1.17071647]
[1771687806342,1.18446968,86.324,86.302,1.17071647]
[1771687806956,1.18446968,86.319,86.302,1.17071647]
[1771687808247,1.23165684,86.309,86.3,0.1]
[1771687808447,1.23165684,86.309,86.288,1.18176195]
[1771687808648,4.12263897,86.3,86.277,1.18176195]
[1771687809754,1.23165684,86.299,86.277,1.18176195]
[1771687811349,11.58775406,86.298,86.272,1.28973887]
[1771687811548,1.2794188,86.297,86.272,1.28973887]
[1771687812463,12.86744141,86.296,86.272,1.28973887]
[1771687812865,1.2794188,86.289,86.272,1.28973887]
[1771687813167,1.2794188,86.289,86.266,1.28973887]
[1771687813384,1.2794188,86.279,86.26,0.1]
[1771687813666,4.13113841,86.28,86.265,1.28973887]
[1771687814062,1.2794188,86.281,86.26,1.38973887]
[1771687814271,8.26227682,86.28,86.25,0.1]
[1771687814451,8.26227682,86.28,86.251,1.28973887]
[1771687814452,4.13113841,86.28,86.251,1.28973887]
[1771687814647,4.13113841,86.28,86.253,1.28973887]
[1771687815062,4.13113841,86.28,86.251,1.28973887]
[1771687815581,4.13113841,86.26,86.233,1.28973887]
[1771687815879,4.13113841,86.28,86.241,1.28973887]
[1771687816055,5.41055721,86.28,86.241,1.28973887]
[1771687816249,1.2794188,86.279,86.241,1.28973887]
[1771687816559,1.2794188,86.277,86.243,1.28973887]
[1771687817171,4.13113841,86.27,86.243,1.28973887]
[1771687817473,1.2794188,86.277,86.243,1.28973887]
[1771687817978,1.2794188,86.277,86.245,1.28973887]
[1771687818271,1.2794188,86.269,86.245,1.28973887]
[1771687819454,11.59178374,86.268,86.245,1.28973887]
[1771687819679,1.2794188,86.267,86.245,1.28973887]
[1771687819983,4.13113841,86.26,86.245,1.28973887]
[1771687820151,1.2794188,86.267,86.245,1.28973887]
[1771687820152,1.2794188,86.275,86.245,1.28973887]
[1771687820484,11.59074769,86.276,86.247,1.28973887]
[1771687820860,1.2794188,86.275,86.247,1.28973887]
[1771687821068,1.2794188,86.275,86.242,1.28973887]
[1771687821372,1.2794188,86.269,86.242,1.28973887]
[1771687822158,1.2794188,86.276,86.244,1.28973887]
[1771687822659,1.2794188,86.282,86.251,1.28973887]
[1771687822854,4.13113841,86.28,86.251,1.28973887]
[1771687823060,1.2794188,86.279,86.251,1.28973887]
[1771687823857,5.41055721,86.27,86.251,1.28973887]
[1771687824274,4.13113841,86.28,86.253,1.28973887]
[1771687824475,1.2794188,86.29,86.253,1.28973887]
[1771687824774,1.2794188,86.279,86.253,1.28973887]
[1771687824976,1.2794188,86.285,86.253,1.28973887]
[1771687825756,1.2794188,86.293,86.257,1.28973887]
[1771687825953,1.2794188,86.289,86.257,1.28973887]
[1771687827077,1.2794188,86.289,86.258,11.59312759]
[1771687827273,1.2794188,86.289,86.259,1.28973887]
[1771687827774,1.2794188,86.296,86.261,1.28973887]
[1771687828981,11.5871421,86.303,86.271,1.28973887]
[1771687829282,1.2794188,86.313,86.281,1.28973887]
[1771687829465,11.5858745,86.312,86.281,1.28973887]
[1771687829665,1.2794188,86.311,86.281,1.28973887]
[1771687830067,1.2794188,86.309,86.281,1.28973887]
[1771687830382,11.5858745,86.312,86.274,0.28432314]
[1771687830383,1.2794188,86.299,86.274,1.28973887]
[1771687831374,1.2794188,86.299,86.276,1.28973887]
[1771687831880,1.2794188,86.319,86.281,1.28973887]
[1771687832071,1.2794188,86.318,86.281,1.28973887]
[1771687832682,1.2794188,86.309,86.276,1.28973887]
[1771687833586,1.2794188,86.319,86.281,1.28973887]
[1771687834576,1.2794188,86.319,86.283,1.28973887]
[1771687834776,1.2794188,86.317,86.283,1.28973887]
[1771687835486,4.13113841,86.34,86.291,1.57406201]
[1771687835696,1.2794188,86.335,86.301,1.28973887]
[1771687836570,4.13113841,86.31,86.285,1.28973887]
[1771687836767,1.2794188,86.309,86.285,1.28973887]
[1771687837073,1.2794188,86.314,86.285,1.28973887]
[1771687838488,11.58574027,86.313,86.285,1.28973887]
[1771687838682,1.2187174,86.312,86.285,1.28973887]
[1771687839489,4.13113841,86.31,86.285,1.28973887]
[1771687839787,5.34985581,86.31,86.285,1.28973887]
[1771687842286,1.2187174,86.309,86.285,1.28973887]
[1771687844594,28.95940008,86.328,86.28,4.13113841]
[1771687844595,1.2187174,86.337,86.301,1.30191419]
[1771687844896,1.2187174,86.329,86.301,1.30191419]
[1771687846100,1.2187174,86.319,86.301,1.30191419]
[1771687846298,1.2187174,86.309,86.284,1.30191419]
[1771687846507,1.2187174,86.307,86.278,1.30191419]
[1771687846882,1.2187174,86.299,86.278,1.30191419]
[1771687847184,1.2187174,86.299,86.262,1.30191419]
[1771687847490,1.2187174,86.299,86.264,1.30191419]
[1771687847693,1.2187174,86.289,86.264,1.30191419]
[1771687848487,1.2187174,86.297,86.266,1.30191419]
[1771687848688,1.2187174,86.309,86.271,1.30191419]
[1771687849495,11.58639547,86.309,86.271,1.30191419]
[1771687849678,1.2187174,86.308,86.271,1.30191419]
[1771687852803,1.2187174,86.314,86.281,1.30191419]
[1771687855007,1.2187174,86.309,86.281,1.30191419]
[1771687855306,1.2187174,86.309,86.283,1.30191419]
[1771687855706,1.2187174,86.329,86.283,1.30191419]
[1771687855902,4.13113841,86.32,86.291,1.30191419]
[1771687856100,1.2187174,86.319,86.291,1.30191419]
[1771687856710,1.2187174,86.329,86.291,1.30191419]
[1771687857003,1.2187174,86.327,86.293,1.30191419]
[1771687860398,1.2187174,86.327,86.294,11.58829119]
[1771687860599,1.2187174,86.334,86.301,1.30191419]
[1771687861118,1.2187174,86.329,86.301,1.30191419]
[1771687863415,11.58362442,86.329,86.301,1.30191419]
[1771687863608,1.2187174,86.328,86.301,1.30191419]
[1771687863812,1.2187174,86.328,86.292,1.30191419]
[1771687864000,1.2187174,86.319,86.292,1.30191419]
[1771687867491,1.2187174,86.309,86.282,1.30191419]
[1771687867696,1.28829042,86.289,86.261,1.30536336]
[1771687868817,1.28829042,86.289,86.263,1.30536336]
[1771687872410,1.32866488,86.318,86.28,4.13113841]
[1771687872600,1.32866488,86.318,86.291,1.25142547]
[1771687872601,12.91373404,86.318,86.291,1.25142547]
[1771687874012,1.32866488,86.317,86.291,1.25142547]
[1771687874808,1.32866488,86.309,86.283,1.25142547]
[1771687875513,1.32866488,86.309,86.283,12.84119402]
[1771687875714,1.32866488,86.309,86.284,1.25142547]
[1771687881421,1.32866488,86.321,86.284,1.25142547]
[1771687881624,1.32866488,86.329,86.294,1.25142547]
[1771687883115,1.32866488,86.329,86.278,1.25142547]
[1771687883315,1.32866488,86.319,86.281,1.25142547]
[1771687883523,1.32866488,86.319,86.291,1.25142547]
[1771687883730,1.32866488,86.317,86.291,1.25142547]
[1771687885908,1.32866488,86.315,86.291,1.25142547]